[Event "***Titled Tuesday 3|2 Blitz"]
[Site "Chess.com"]
[Date "2017.02.07"]
[Round "7"]
[White "popov_m"]
[Black "nihalsarin"]
[Result "1-0"]
[WhiteElo "2341"]
[BlackElo "2479"]
[TimeControl "180+2"]
[EndTime "14:40:44 PST"]
[Termination "popov_m won by resignation"]

1. d4 {[%clk 0:03:02]} 1... Nf6 {[%clk 0:03:00.7]} 2. Bf4 {[%clk 0:03:02.3]}
2... e6 {[%clk 0:02:54]} 3. e3 {[%clk 0:02:53]} 3... b6 {[%clk 0:02:53.8]} 4.
Nf3 {[%clk 0:02:53.2]} 4... Bb7 {[%clk 0:02:54.7]} 5. h3 {[%clk 0:02:53.9]} 5...
Bd6 {[%clk 0:02:55]} 6. Ne5 {[%clk 0:02:47.7]} 6... O-O {[%clk 0:02:48.1]} 7.
Nd2 {[%clk 0:02:48.3]} 7... Nd5 {[%clk 0:02:44.1]} 8. Bh2 {[%clk 0:02:42.8]}
8... f6 {[%clk 0:02:44.2]} 9. Nef3 {[%clk 0:02:43.4]} 9... Bxh2 {[%clk
0:02:43.8]} 10. Nxh2 {[%clk 0:02:45.3]} 10... f5 {[%clk 0:02:41.8]} 11. Nhf3
{[%clk 0:02:38.4]} 11... Qe8 {[%clk 0:02:31.2]} 12. c3 {[%clk 0:02:32.6]} 12...
Kh8 {[%clk 0:02:25.6]} 13. Qc2 {[%clk 0:02:33.4]} 13... c5 {[%clk 0:02:23.2]}
14. g4 {[%clk 0:02:20.4]} 14... Nc6 {[%clk 0:02:09.7]} 15. O-O-O {[%clk
0:02:20.6]} 15... Rc8 {[%clk 0:02:03.3]} 16. Kb1 {[%clk 0:02:09.7]} 16... cxd4
{[%clk 0:01:58.2]} 17. exd4 {[%clk 0:02:09.1]} 17... Nf4 {[%clk 0:01:22.2]} 18.
Rg1 {[%clk 0:02:00.9]} 18... fxg4 {[%clk 0:01:02.1]} 19. Rxg4 {[%clk 0:01:52]}
19... Qh5 {[%clk 0:00:36.2]} 20. Rg5 {[%clk 0:01:22.3]} 20... Qh6 {[%clk
0:00:31.8]} 21. Qa4 {[%clk 0:01:11.3]} 21... a6 {[%clk 0:00:21.1]} 22. Qa3
{[%clk 0:01:01.4]} 22... b5 {[%clk 0:00:21.8]} 23. Qd6 {[%clk 0:00:59.5]} 23...
b4 {[%clk 0:00:17.9]} 24. Qxd7 {[%clk 0:00:51.5]} 24... bxc3 {[%clk 0:00:17.9]}
25. bxc3 {[%clk 0:00:51]} 25... Rb8 {[%clk 0:00:18.3]} 26. Ka1 {[%clk
0:00:51.6]} 26... Na5 {[%clk 0:00:17.2]} 27. Rb1 {[%clk 0:00:36.8]} 27... Bd5
{[%clk 0:00:15.8]} 28. Rxb8 {[%clk 0:00:34.5]} 28... Rxb8 {[%clk 0:00:16.7]} 29.
Qd6 {[%clk 0:00:34.9]} 29... Rg8 {[%clk 0:00:15.3]} 30. Qxf4 {[%clk 0:00:34.9]}
30... Nc6 {[%clk 0:00:12.7]} 31. Bd3 {[%clk 0:00:34.5]} 31... Bxf3 {[%clk
0:00:13.5]} 32. Nxf3 {[%clk 0:00:35.3]} 32... e5 {[%clk 0:00:14.9]} 33. Nxe5
{[%clk 0:00:33.7]} 33... Nxe5 {[%clk 0:00:16.2]} 34. Qxe5 {[%clk 0:00:35.1]}
34... Qh4 {[%clk 0:00:16.7]} 35. Rh5 {[%clk 0:00:35.5]} 1-0

[Event "***Titled Tuesday 3|2 Blitz"]
[Site "Chess.com"]
[Date "2017.02.07"]
[Round "7"]
[White "VMikhalevski"]
[Black "Rozum_Ivan"]
[Result "1-0"]
[WhiteElo "2535"]
[BlackElo "2561"]
[TimeControl "180+2"]
[EndTime "14:40:45 PST"]
[Termination "VMikhalevski won by resignation"]

1. Nf3 {[%clk 0:03:02]} 1... Nf6 {[%clk 0:02:59.8]} 2. g3 {[%clk 0:03:00.3]}
2... b6 {[%clk 0:03:00.8]} 3. Bg2 {[%clk 0:03:00.4]} 3... Bb7 {[%clk 0:03:02.2]}
4. O-O {[%clk 0:03:01.3]} 4... g6 {[%clk 0:03:03.7]} 5. b3 {[%clk 0:03:01.6]}
5... Bg7 {[%clk 0:03:05.1]} 6. Bb2 {[%clk 0:03:03.2]} 6... O-O {[%clk 0:03:07]}
7. d4 {[%clk 0:03:00.7]} 7... c5 {[%clk 0:03:07.8]} 8. c4 {[%clk 0:03:00.3]}
8... cxd4 {[%clk 0:03:09]} 9. Nxd4 {[%clk 0:02:54.7]} 9... Bxg2 {[%clk
0:03:09.1]} 10. Kxg2 {[%clk 0:02:55.9]} 10... d6 {[%clk 0:03:10.6]} 11. Nc3
{[%clk 0:02:54.8]} 11... Qd7 {[%clk 0:03:08.8]} 12. e4 {[%clk 0:02:55]} 12...
Qb7 {[%clk 0:03:08.3]} 13. f3 {[%clk 0:02:55]} 13... Nbd7 {[%clk 0:03:09.3]} 14.
Qe2 {[%clk 0:02:50.8]} 14... e6 {[%clk 0:03:10.3]} 15. Rad1 {[%clk 0:02:48.9]}
15... a6 {[%clk 0:03:11.3]} 16. Nc2 {[%clk 0:02:40.3]} 16... Ne8 {[%clk
0:03:06.9]} 17. Na4 {[%clk 0:02:32.1]} 17... b5 {[%clk 0:03:03.2]} 18. Bxg7
{[%clk 0:02:32.2]} 18... Kxg7 {[%clk 0:03:04.1]} 19. Nb2 {[%clk 0:02:32.8]}
19... Ne5 {[%clk 0:03:01.7]} 20. Ne3 {[%clk 0:02:31.9]} 20... Rd8 {[%clk
0:02:57.5]} 21. Qd2 {[%clk 0:02:21.5]} 21... Nf6 {[%clk 0:02:56.5]} 22. Qc3
{[%clk 0:02:19.3]} 22... Kg8 {[%clk 0:02:45.7]} 23. Rd2 {[%clk 0:02:06.5]} 23...
Nxf3 {[%clk 0:02:16.1]} 24. Rxf3 {[%clk 0:01:30.3]} 24... Nxe4 {[%clk
0:02:16.8]} 25. Qd3 {[%clk 0:01:30.2]} 25... Nxd2 {[%clk 0:02:16]} 26. Qxd2
{[%clk 0:01:30.2]} 26... f5 {[%clk 0:02:17.6]} 27. Ned1 {[%clk 0:01:15.1]} 27...
d5 {[%clk 0:02:12.1]} 28. cxb5 {[%clk 0:01:12.5]} 28... axb5 {[%clk 0:02:12]}
29. Qd4 {[%clk 0:01:09.4]} 29... Rfe8 {[%clk 0:02:02.7]} 30. Nd3 {[%clk
0:01:09.6]} 30... Qc7 {[%clk 0:02:01.4]} 31. Ne5 {[%clk 0:01:09.3]} 31... Qc2+
{[%clk 0:01:59]} 32. Nf2 {[%clk 0:01:06.2]} 32... Qxa2 {[%clk 0:01:47.1]} 33. h4
{[%clk 0:01:05.3]} 33... Qc2 {[%clk 0:01:20.1]} 34. h5 {[%clk 0:01:04.2]} 34...
g5 {[%clk 0:01:21.4]} 35. Qa7 {[%clk 0:00:56.2]} 35... g4 {[%clk 0:00:23.4]} 36.
h6 {[%clk 0:00:49.4]} 36... gxf3+ {[%clk 0:00:23.6]} 37. Kh3 {[%clk 0:00:50.1]}
1-0

[Event "***Titled Tuesday 3|2 Blitz"]
[Site "Chess.com"]
[Date "2017.02.07"]
[Round "7"]
[White "Gergo85"]
[Black "AkshatChandra"]
[Result "1-0"]
[WhiteElo "2451"]
[BlackElo "2640"]
[TimeControl "180+2"]
[EndTime "14:40:52 PST"]
[Termination "Gergo85 won by resignation"]

1. e4 {[%clk 0:03:02]} 1... e6 {[%clk 0:02:53.2]} 2. d4 {[%clk 0:03:02.3]} 2...
d5 {[%clk 0:02:54.8]} 3. Nd2 {[%clk 0:03:03.9]} 3... c5 {[%clk 0:02:55.7]} 4.
Ngf3 {[%clk 0:02:55.9]} 4... cxd4 {[%clk 0:02:56.9]} 5. Nxd4 {[%clk 0:02:54.7]}
5... Nf6 {[%clk 0:02:57.8]} 6. exd5 {[%clk 0:02:56]} 6... Qxd5 {[%clk
0:02:57.3]} 7. Nb5 {[%clk 0:02:55.3]} 7... Na6 {[%clk 0:02:58]} 8. Nc3 {[%clk
0:02:52.1]} 8... Qd6 {[%clk 0:02:58.7]} 9. Be2 {[%clk 0:02:51.3]} 9... Bd7
{[%clk 0:02:43.5]} 10. O-O {[%clk 0:02:47.6]} 10... Bc6 {[%clk 0:02:25.4]} 11.
Nc4 {[%clk 0:02:36.5]} 11... Qxd1 {[%clk 0:02:24.5]} 12. Rxd1 {[%clk 0:02:38.4]}
12... Nb4 {[%clk 0:02:23.7]} 13. Ne3 {[%clk 0:02:16]} 13... Bc5 {[%clk
0:01:42.9]} 14. a3 {[%clk 0:02:16.5]} 14... Bxe3 {[%clk 0:01:44]} 15. axb4
{[%clk 0:02:17.5]} 15... Bxc1 {[%clk 0:01:45.5]} 16. Rdxc1 {[%clk 0:02:13.9]}
16... Ke7 {[%clk 0:01:46.4]} 17. b5 {[%clk 0:02:14.3]} 17... Be4 {[%clk
0:01:09]} 18. Ra4 {[%clk 0:01:57.1]} 18... Bg6 {[%clk 0:00:45.5]} 19. Bf3 {[%clk
0:01:49.4]} 19... Rhb8 {[%clk 0:00:47]} 20. h4 {[%clk 0:01:42.6]} 20... h6
{[%clk 0:00:44]} 21. Rca1 {[%clk 0:00:57.9]} 21... a6 {[%clk 0:00:35.9]} 22.
bxa6 {[%clk 0:00:25.5]} 22... Rxa6 {[%clk 0:00:37.8]} 23. Rc1 {[%clk 0:00:12.8]}
23... Rxa4 {[%clk 0:00:32.2]} 24. Nxa4 {[%clk 0:00:14.7]} 24... b5 {[%clk
0:00:34]} 25. Nc5 {[%clk 0:00:16.1]} 25... Kd6 {[%clk 0:00:32.5]} 26. b4 {[%clk
0:00:15]} 26... Nd5 {[%clk 0:00:32.1]} 27. Bxd5 {[%clk 0:00:16.1]} 27... Kxd5
{[%clk 0:00:33]} 28. c3 {[%clk 0:00:06.5]} 28... Kc4 {[%clk 0:00:34.1]} 29. Nd7
{[%clk 0:00:05.3]} 29... Rd8 {[%clk 0:00:28.2]} 30. Ne5+ {[%clk 0:00:06.5]}
30... Kb3 {[%clk 0:00:29.7]} 31. Nxg6 {[%clk 0:00:07.6]} 31... fxg6 {[%clk
0:00:30.8]} 32. Kh2 {[%clk 0:00:07.3]} 32... Rd6 {[%clk 0:00:26.6]} 33. f3
{[%clk 0:00:06.7]} 33... Rc6 {[%clk 0:00:27.4]} 34. Re1 {[%clk 0:00:08]} 34...
Kxc3 {[%clk 0:00:28.2]} 35. Rc1+ {[%clk 0:00:09]} 1-0

[Event "***Titled Tuesday 3|2 Blitz"]
[Site "Chess.com"]
[Date "2017.02.07"]
[Round "7"]
[White "ShimanovAlex"]
[Black "BilodeauA"]
[Result "1-0"]
[WhiteElo "2665"]
[BlackElo "2596"]
[TimeControl "180+2"]
[EndTime "14:40:56 PST"]
[Termination "ShimanovAlex won by resignation"]

1. d4 {[%clk 0:03:01.9]} 1... d5 {[%clk 0:02:57.5]} 2. Bf4 {[%clk 0:03:02.1]}
2... Nf6 {[%clk 0:02:58]} 3. e3 {[%clk 0:03:03]} 3... e6 {[%clk 0:02:59.4]} 4.
Nd2 {[%clk 0:03:03.7]} 4... Bd6 {[%clk 0:03:00.4]} 5. Bg3 {[%clk 0:03:04.5]}
5... O-O {[%clk 0:03:01.4]} 6. Ngf3 {[%clk 0:03:04.1]} 6... c5 {[%clk
0:03:02.3]} 7. c3 {[%clk 0:03:04.4]} 7... Nc6 {[%clk 0:03:03.4]} 8. Bd3 {[%clk
0:03:05]} 8... b6 {[%clk 0:03:01.2]} 9. Qe2 {[%clk 0:03:06.1]} 9... Bb7 {[%clk
0:03:01.6]} 10. Rd1 {[%clk 0:03:07.2]} 10... Be7 {[%clk 0:02:26.9]} 11. Ne5
{[%clk 0:02:59.5]} 11... Nxe5 {[%clk 0:02:18.5]} 12. dxe5 {[%clk 0:02:58.8]}
12... Nd7 {[%clk 0:02:14.1]} 13. f4 {[%clk 0:02:58.1]} 13... f5 {[%clk
0:02:10.2]} 14. exf6 {[%clk 0:02:57.4]} 14... Nxf6 {[%clk 0:02:10.5]} 15. e4
{[%clk 0:02:57.3]} 15... Qe8 {[%clk 0:02:03.7]} 16. e5 {[%clk 0:02:54.1]} 16...
Nh5 {[%clk 0:02:01.2]} 17. Qg4 {[%clk 0:02:54.4]} 17... Qf7 {[%clk 0:01:45.5]}
18. O-O {[%clk 0:02:53.2]} 18... Nxg3 {[%clk 0:01:35.4]} 19. hxg3 {[%clk
0:02:47.3]} 19... g6 {[%clk 0:01:35.6]} 20. Nf3 {[%clk 0:02:47.6]} 20... Rad8
{[%clk 0:01:29.2]} 21. Nh4 {[%clk 0:02:36.3]} 21... c4 {[%clk 0:00:34.2]} 22.
Bc2 {[%clk 0:02:19.9]} 22... Bc5+ {[%clk 0:00:35.2]} 23. Kh2 {[%clk 0:02:21.1]}
23... d4 {[%clk 0:00:36.7]} 24. cxd4 {[%clk 0:02:21]} 24... Rxd4 {[%clk
0:00:37.2]} 25. Rxd4 {[%clk 0:01:17.8]} 25... Bxd4 {[%clk 0:00:39.1]} 26. f5
{[%clk 0:01:19.6]} 26... Bxe5 {[%clk 0:00:18.8]} 27. fxg6 {[%clk 0:01:20.7]}
27... Qxf1 {[%clk 0:00:19.7]} 28. gxh7+ {[%clk 0:01:21.8]} 28... Kf7 {[%clk
0:00:21.4]} 29. Qh5+ {[%clk 0:01:23.1]} 29... Ke7 {[%clk 0:00:22.4]} 30. Qxe5
{[%clk 0:01:22.2]} 30... Qc1 {[%clk 0:00:13.6]} 31. Qg7+ {[%clk 0:01:18.5]}
31... Rf7 {[%clk 0:00:14.1]} 32. Qxf7+ {[%clk 0:01:12.3]} 32... Kxf7 {[%clk
0:00:15.2]} 33. h8=Q {[%clk 0:00:56.2]} 33... Qxc2 {[%clk 0:00:16.4]} 34. Qb8
{[%clk 0:00:57.3]} 34... Qe4 {[%clk 0:00:16.7]} 35. Qxa7 {[%clk 0:00:58]} 35...
Qc6 {[%clk 0:00:17.7]} 36. Nf3 {[%clk 0:00:56.7]} 36... Ke7 {[%clk 0:00:17.3]}
37. Qb8 {[%clk 0:00:52]} 37... b5 {[%clk 0:00:18]} 38. a3 {[%clk 0:00:52.6]}
38... Qe4 {[%clk 0:00:16.7]} 39. Qc7+ {[%clk 0:00:52.7]} 39... Ke8 {[%clk
0:00:17.6]} 40. g4 {[%clk 0:00:51.1]} 40... Bd5 {[%clk 0:00:17.9]} 41. g5 {[%clk
0:00:48.3]} 41... Qf4+ {[%clk 0:00:17.6]} 42. Qxf4 {[%clk 0:00:48.5]} 1-0

[Event "***Titled Tuesday 3|2 Blitz"]
[Site "Chess.com"]
[Date "2017.02.07"]
[Round "7"]
[White "Grebeniuk-S"]
[Black "biostatistician"]
[Result "0-1"]
[WhiteElo "2436"]
[BlackElo "2504"]
[TimeControl "180+2"]
[EndTime "14:41:36 PST"]
[Termination "biostatistician won by resignation"]

1. d4 {[%clk 0:03:02]} 1... Nf6 {[%clk 0:02:59.9]} 2. Nf3 {[%clk 0:03:01.7]}
2... g6 {[%clk 0:02:59.6]} 3. Bg5 {[%clk 0:03:02.8]} 3... Bg7 {[%clk 0:03:01.5]}
4. Nbd2 {[%clk 0:03:04.1]} 4... O-O {[%clk 0:03:01.9]} 5. c3 {[%clk 0:03:05.2]}
5... c5 {[%clk 0:02:59.2]} 6. e3 {[%clk 0:03:06]} 6... b6 {[%clk 0:02:59.3]} 7.
Be2 {[%clk 0:03:06.7]} 7... Bb7 {[%clk 0:03:00.1]} 8. O-O {[%clk 0:03:08.1]}
8... d6 {[%clk 0:03:01.3]} 9. a4 {[%clk 0:03:08.8]} 9... Nc6 {[%clk 0:02:58.3]}
10. Qc2 {[%clk 0:03:06.7]} 10... Rc8 {[%clk 0:02:58.2]} 11. Rfd1 {[%clk
0:03:01.3]} 11... Rc7 {[%clk 0:02:48.4]} 12. Nc4 {[%clk 0:02:47.5]} 12... Qa8
{[%clk 0:02:45.4]} 13. d5 {[%clk 0:02:42.9]} 13... Na5 {[%clk 0:02:34]} 14. Nxa5
{[%clk 0:02:29.9]} 14... bxa5 {[%clk 0:02:35.9]} 15. e4 {[%clk 0:02:30.7]} 15...
Bc8 {[%clk 0:02:25.8]} 16. Nd2 {[%clk 0:02:21.9]} 16... e6 {[%clk 0:02:07.6]}
17. dxe6 {[%clk 0:02:05.9]} 17... Bxe6 {[%clk 0:02:07.4]} 18. Bc4 {[%clk
0:01:58]} 18... Bxc4 {[%clk 0:01:57.4]} 19. Bxf6 {[%clk 0:01:58.6]} 19... Be2
{[%clk 0:01:42.3]} 20. Re1 {[%clk 0:01:49]} 20... Bxf6 {[%clk 0:01:42.5]} 21.
Rxe2 {[%clk 0:01:50]} 21... Re8 {[%clk 0:01:42.7]} 22. Rae1 {[%clk 0:01:48]}
22... d5 {[%clk 0:01:39]} 23. exd5 {[%clk 0:01:30.8]} 23... Rxe2 {[%clk
0:01:40.9]} 24. Rxe2 {[%clk 0:01:31.7]} 24... Qxd5 {[%clk 0:01:41.9]} 25. Qe4
{[%clk 0:01:29]} 25... Qa2 {[%clk 0:01:36]} 26. g3 {[%clk 0:00:31.6]} 26... Qxb2
{[%clk 0:01:15.1]} 27. Nc4 {[%clk 0:00:32.6]} 27... Qxc3 {[%clk 0:01:10.7]} 28.
Qa8+ {[%clk 0:00:23.8]} 28... Kg7 {[%clk 0:01:11.3]} 29. Nd6 {[%clk 0:00:24.8]}
29... Re7 {[%clk 0:00:44.9]} 30. Ne8+ {[%clk 0:00:19]} 30... Kh6 {[%clk
0:00:43.1]} 31. Rxe7 {[%clk 0:00:13.3]} 31... Bxe7 {[%clk 0:00:45]} 32. Qe4
{[%clk 0:00:12.1]} 32... Bg5 {[%clk 0:00:30]} 33. h4 {[%clk 0:00:12.9]} 33...
Bc1 {[%clk 0:00:24.9]} 34. Kg2 {[%clk 0:00:09.7]} 34... Qd4 {[%clk 0:00:24.7]}
35. Qe7 {[%clk 0:00:06.2]} 35... Qd5+ {[%clk 0:00:19.9]} 36. Kh2 {[%clk
0:00:07.6]} 36... Bb2 {[%clk 0:00:17.6]} 37. Qf8+ {[%clk 0:00:08.1]} 37... Kh5
{[%clk 0:00:18.8]} 38. Nf6+ {[%clk 0:00:09.5]} 38... Bxf6 {[%clk 0:00:18.7]} 39.
Qc8 {[%clk 0:00:09.7]} 39... Kh6 {[%clk 0:00:18.6]} 40. Qc7 {[%clk 0:00:08.3]}
40... Kg7 {[%clk 0:00:19]} 41. Qxa7 {[%clk 0:00:08.8]} 41... c4 {[%clk
0:00:20.3]} 0-1

[Event "***Titled Tuesday 3|2 Blitz"]
[Site "Chess.com"]
[Date "2017.02.07"]
[Round "7"]
[White "ka1ser64"]
[Black "Angry_Serb"]
[Result "0-1"]
[WhiteElo "2295"]
[BlackElo "2414"]
[TimeControl "180+2"]
[EndTime "14:41:36 PST"]
[Termination "Angry_Serb won by resignation"]

1. d4 {[%clk 0:03:02]} 1... Nf6 {[%clk 0:02:59]} 2. c4 {[%clk 0:03:00.4]} 2...
c5 {[%clk 0:03:00]} 3. d5 {[%clk 0:03:00.5]} 3... e6 {[%clk 0:03:01.4]} 4. Nc3
{[%clk 0:03:00.8]} 4... exd5 {[%clk 0:03:02.8]} 5. cxd5 {[%clk 0:03:02.7]} 5...
Bd6 {[%clk 0:03:04.3]} 6. e4 {[%clk 0:03:03.2]} 6... O-O {[%clk 0:03:04.9]} 7.
Nf3 {[%clk 0:02:54.3]} 7... Re8 {[%clk 0:03:04.5]} 8. Nd2 {[%clk 0:02:46]} 8...
Bc7 {[%clk 0:03:01.8]} 9. Be2 {[%clk 0:02:46.6]} 9... d6 {[%clk 0:03:02.9]} 10.
O-O {[%clk 0:02:47.5]} 10... a6 {[%clk 0:03:04.5]} 11. a4 {[%clk 0:02:48.1]}
11... Nbd7 {[%clk 0:03:05.8]} 12. f4 {[%clk 0:02:43.2]} 12... Nf8 {[%clk
0:03:03.4]} 13. Bf3 {[%clk 0:02:30.4]} 13... Rb8 {[%clk 0:03:03.3]} 14. Re1
{[%clk 0:01:28.4]} 14... Ng6 {[%clk 0:02:59]} 15. g3 {[%clk 0:00:56.5]} 15... b5
{[%clk 0:02:55.9]} 16. axb5 {[%clk 0:00:56.9]} 16... axb5 {[%clk 0:02:57.8]} 17.
Nf1 {[%clk 0:00:49.9]} 17... b4 {[%clk 0:02:49.8]} 18. Nb1 {[%clk 0:00:46.5]}
18... c4 {[%clk 0:02:33.7]} 19. Qc2 {[%clk 0:00:41.2]} 19... c3 {[%clk
0:02:13.6]} 20. bxc3 {[%clk 0:00:41]} 20... Nxd5 {[%clk 0:02:14.9]} 21. cxb4
{[%clk 0:00:38.9]} 21... Nxb4 {[%clk 0:02:13.5]} 22. Qc3 {[%clk 0:00:35.4]}
22... d5 {[%clk 0:02:04.5]} 23. Bb2 {[%clk 0:00:35.8]} 23... d4 {[%clk
0:02:05.6]} 24. Qd2 {[%clk 0:00:21.5]} 24... Ba6 {[%clk 0:01:16.5]} 25. Rd1
{[%clk 0:00:15.1]} 25... Bd3 {[%clk 0:01:10.3]} 26. e5 {[%clk 0:00:13.2]} 26...
Bxe5 {[%clk 0:00:58.7]} 27. fxe5 {[%clk 0:00:12.9]} 27... Nxe5 {[%clk
0:01:00.6]} 28. Bg2 {[%clk 0:00:13.1]} 28... Nc4 {[%clk 0:01:01.7]} 29. Qf2
{[%clk 0:00:13.5]} 29... Re2 {[%clk 0:01:01.7]} 30. Bxd4 {[%clk 0:00:06.2]}
30... Rxf2 {[%clk 0:01:02.3]} 31. Bxf2 {[%clk 0:00:07.6]} 31... Qf6 {[%clk
0:01:01.6]} 32. Nbd2 {[%clk 0:00:06.9]} 32... Nxd2 {[%clk 0:00:40.8]} 33. Nxd2
{[%clk 0:00:07.5]} 33... Bc2 {[%clk 0:00:40.9]} 34. Rf1 {[%clk 0:00:07.6]} 34...
Bd3 {[%clk 0:00:39.2]} 35. Rfc1 {[%clk 0:00:07.9]} 35... Nc2 {[%clk 0:00:40.3]}
36. Rab1 {[%clk 0:00:08.3]} 36... Rd8 {[%clk 0:00:39.9]} 37. Rb3 {[%clk
0:00:08.8]} 37... Bg6 {[%clk 0:00:38]} 38. Ne4 {[%clk 0:00:07.8]} 38... Qe6
{[%clk 0:00:33.1]} 39. Rc3 {[%clk 0:00:07.6]} 39... Nb4 {[%clk 0:00:31.8]} 40.
Nc5 {[%clk 0:00:07.2]} 40... Qf6 {[%clk 0:00:29.4]} 41. Bf1 {[%clk 0:00:07.9]}
41... h5 {[%clk 0:00:29.7]} 42. Be3 {[%clk 0:00:08.9]} 42... Nd5 {[%clk
0:00:29.2]} 43. Ra3 {[%clk 0:00:08.7]} 43... Nxe3 {[%clk 0:00:30.1]} 44. Rxe3
{[%clk 0:00:10.3]} 44... Qd4 {[%clk 0:00:31.8]} 45. Kf2 {[%clk 0:00:12.1]} 45...
Re8 {[%clk 0:00:33.1]} 46. Rc3 {[%clk 0:00:13.5]} 46... Rxe3 {[%clk 0:00:31.3]}
47. Rxe3 {[%clk 0:00:15.4]} 47... Qxc5 {[%clk 0:00:32.8]} 0-1

[Event "***Titled Tuesday 3|2 Blitz"]
[Site "Chess.com"]
[Date "2017.02.07"]
[Round "7"]
[White "wonderfultime"]
[Black "GMBenjaminBok"]
[Result "0-1"]
[WhiteElo "2643"]
[BlackElo "2641"]
[TimeControl "180+2"]
[EndTime "14:41:39 PST"]
[Termination "GMBenjaminBok won on time"]

1. d4 {[%clk 0:03:01.9]} 1... Nf6 {[%clk 0:02:59.5]} 2. c4 {[%clk 0:03:01.6]}
2... g6 {[%clk 0:03:00.7]} 3. Nc3 {[%clk 0:03:02.3]} 3... d5 {[%clk 0:03:01.6]}
4. Bg5 {[%clk 0:03:00.2]} 4... Ne4 {[%clk 0:03:01.9]} 5. Bf4 {[%clk 0:02:59.6]}
5... Nxc3 {[%clk 0:02:57]} 6. bxc3 {[%clk 0:03:01.5]} 6... Bg7 {[%clk
0:02:44.8]} 7. e3 {[%clk 0:03:01.6]} 7... c5 {[%clk 0:02:45.2]} 8. Nf3 {[%clk
0:02:57.9]} 8... O-O {[%clk 0:02:43]} 9. Be2 {[%clk 0:02:51.3]} 9... dxc4 {[%clk
0:02:32.3]} 10. Bxc4 {[%clk 0:02:53.2]} 10... Nc6 {[%clk 0:02:33.5]} 11. O-O
{[%clk 0:02:53.1]} 11... Bf5 {[%clk 0:02:28]} 12. Rc1 {[%clk 0:02:41.3]} 12...
Rc8 {[%clk 0:02:26.6]} 13. h3 {[%clk 0:02:37.6]} 13... Na5 {[%clk 0:01:57.3]}
14. Be2 {[%clk 0:02:36.1]} 14... b6 {[%clk 0:01:57.1]} 15. Qd2 {[%clk
0:02:02.1]} 15... Be6 {[%clk 0:01:50.7]} 16. Ng5 {[%clk 0:01:48.7]} 16... Bc4
{[%clk 0:01:29.8]} 17. Rfd1 {[%clk 0:01:42.1]} 17... Qd7 {[%clk 0:01:26.4]} 18.
d5 {[%clk 0:01:33.7]} 18... Qb5 {[%clk 0:01:21.6]} 19. Bf3 {[%clk 0:01:06.9]}
19... Rcd8 {[%clk 0:01:19]} 20. h4 {[%clk 0:01:01.9]} 20... Qa4 {[%clk
0:01:13.4]} 21. e4 {[%clk 0:00:50.3]} 21... Qxa2 {[%clk 0:01:05.1]} 22. Qe3
{[%clk 0:00:51.7]} 22... Nb3 {[%clk 0:00:52.3]} 23. Rb1 {[%clk 0:00:52.8]} 23...
Qc2 {[%clk 0:00:50.4]} 24. e5 {[%clk 0:00:53.6]} 24... Bxd5 {[%clk 0:00:48]} 25.
h5 {[%clk 0:00:23.6]} 25... Bxf3 {[%clk 0:00:46.4]} 26. Qxf3 {[%clk 0:00:25.5]}
26... Rxd1+ {[%clk 0:00:42]} 27. Rxd1 {[%clk 0:00:27.4]} 27... Qf5 {[%clk
0:00:42.8]} 28. hxg6 {[%clk 0:00:28.3]} 28... hxg6 {[%clk 0:00:29.6]} 29. g4
{[%clk 0:00:24.5]} 29... Qc2 {[%clk 0:00:24.4]} 30. Rd7 {[%clk 0:00:20.3]} 30...
Bh6 {[%clk 0:00:21.5]} 31. Rxe7 {[%clk 0:00:18.2]} 31... Nd2 {[%clk 0:00:20.1]}
32. Qh3 {[%clk 0:00:15.5]} 32... Bxg5 {[%clk 0:00:15.1]} 33. Bxg5 {[%clk
0:00:15.8]} 33... Qd1+ {[%clk 0:00:10.6]} 34. Kg2 {[%clk 0:00:05.7]} 34... Qf1+
{[%clk 0:00:11.1]} 35. Kh2 {[%clk 0:00:04.5]} 35... Qxf2+ {[%clk 0:00:12.1]} 36.
Kh1 {[%clk 0:00:05.9]} 36... Qe1+ {[%clk 0:00:12]} 37. Kh2 {[%clk 0:00:05.5]}
37... Qf2+ {[%clk 0:00:12]} 38. Kh1 {[%clk 0:00:06.9]} 38... Nf3 {[%clk
0:00:11.6]} 0-1